bitfinex/quotes_BTCUSD_20240810
["timestamp","ask_amount","ask_price","bid_price","bid_amount"]
[1723307219315,0.03698867,60771.0,60770.0,0.40072259]
[1723307219465,0.03979716,60771.0,60770.0,0.40072259]
[1723307219674,0.03985058,60771.0,60770.0,0.40476535]
[1723307220495,0.03393821,60771.0,60770.0,0.28413468]
[1723307220699,0.03393821,60771.0,60770.0,0.41822363]
[1723307220905,0.03393821,60771.0,60770.0,0.89188563]
[1723307221255,0.03112972,60771.0,60770.0,1.05828563]
[1723307221367,0.03112972,60771.0,60770.0,1.07228563]
[1723307221587,0.000831,60771.0,60770.0,1.07228563]
[1723307221801,0.000831,60771.0,60770.0,1.05233936]
[1723307222986,0.000831,60771.0,60770.0,1.05247252]
[1723307223425,0.000831,60771.0,60770.0,1.04825782]
[1723307223631,0.000831,60771.0,60770.0,1.04802767]
[1723307223831,0.000831,60771.0,60770.0,1.06202767]
[1723307224188,0.000831,60771.0,60770.0,1.04802767]
[1723307224791,0.000831,60771.0,60770.0,1.06202767]
[1723307225288,0.000831,60771.0,60770.0,1.06802767]
[1723307225641,0.000831,60771.0,60770.0,1.06789979]
[1723307225844,0.000831,60771.0,60770.0,1.08189979]
[1723307226208,0.000831,60771.0,60770.0,1.06189979]
[1723307226405,0.000831,60771.0,60770.0,1.07211449]
[1723307226638,0.000831,60771.0,60770.0,0.90756049]
[1723307227386,0.000831,60771.0,60770.0,0.90847459]
[1723307227786,0.000831,60771.0,60770.0,0.59752059]
[1723307228353,0.000831,60771.0,60770.0,0.59347783]
[1723307228592,0.000831,60771.0,60770.0,0.57947783]
[1723307228801,0.00362276,60771.0,60770.0,0.57947783]
[1723307229140,0.14652276,60771.0,60770.0,0.18283191]
[1723307229332,0.14652276,60771.0,60770.0,0.26475546]
[1723307229487,0.14652276,60771.0,60770.0,0.42930946]
[1723307229706,0.14652276,60771.0,60770.0,0.2817451]
[1723307230244,0.14652276,60771.0,60770.0,0.2957451]
[1723307231085,0.00362276,60771.0,60770.0,0.2957451]
[1723307231286,0.00362276,60771.0,60770.0,0.62411402]
[1723307231427,0.00362276,60771.0,60770.0,0.75798089]
[1723307231828,0.000831,60771.0,60770.0,0.75798089]
[1723307233472,0.000831,60771.0,60770.0,0.75825173]
[1723307234194,0.000831,60771.0,60770.0,0.73825173]
[1723307234704,0.000831,60771.0,60770.0,0.88515173]
[1723307236126,0.000831,60771.0,60770.0,1.06970573]
[1723307236504,0.000831,60771.0,60770.0,0.93556802]
[1723307236708,0.000831,60771.0,60770.0,1.06971166]
[1723307237108,0.000831,60771.0,60770.0,0.93556802]
[1723307237311,0.000831,60771.0,60770.0,1.06962982]
[1723307238308,0.000831,60771.0,60770.0,1.04962982]
[1723307240218,0.000831,60771.0,60770.0,1.05002753]
[1723307241572,0.000831,60771.0,60770.0,1.07002753]
[1723307243783,0.000831,60771.0,60770.0,0.93556802]
[1723307243984,0.000831,60771.0,60770.0,1.07014551]
[1723307244304,0.000831,60771.0,60770.0,0.93556802]
[1723307244508,0.000831,60771.0,60770.0,1.07014551]
[1723307244630,0.000831,60771.0,60770.0,1.07014635]
[1723307245230,0.000831,60771.0,60770.0,1.00594635]
[1723307245509,0.000831,60771.0,60770.0,0.75869235]
[1723307245711,0.137031,60771.0,60770.0,0.75869235]
[1723307245913,0.13982307,60771.0,60770.0,0.75869235]
[1723307246119,0.13982307,60771.0,60770.0,0.75855227]
[1723307246672,0.00362307,60771.0,60770.0,0.75855227]
[1723307246878,0.00362307,60771.0,60770.0,0.77251402]
[1723307247079,0.00362307,60771.0,60770.0,0.90700032]
[1723307247635,0.000831,60771.0,60770.0,0.84129999]
[1723307248065,0.000831,60771.0,60770.0,0.75859999]
[1723307248265,0.146631,60771.0,60770.0,0.75859999]
[1723307248522,0.146631,60771.0,60770.0,0.59404599]
[1723307248523,0.17963771,60771.0,60770.0,0.59404599]
[1723307248940,0.17975505,60771.0,60770.0,0.59404599]
[1723307250842,0.17975505,60771.0,60770.0,0.45956002]
[1723307250843,0.14942855,60771.0,60770.0,0.45956002]
[1723307251039,0.17979009,60771.0,60770.0,0.45956002]
[1723307251247,0.14942855,60771.0,60770.0,0.59339564]
[1723307252674,0.14942855,60771.0,60770.0,0.59338932]
[1723307253954,0.1797701,60771.0,60770.0,0.59338932]
[1723307254511,0.1797701,60771.0,60770.0,0.42883532]
[1723307254715,0.1797701,60771.0,60770.0,0.42882253]
[1723307254920,0.14942855,60771.0,60770.0,0.18273061]
[1723307255154,0.14942855,60771.0,60770.0,0.0289141]
[1723307255155,0.42661404,60771.0,60770.0,0.0289141]
[1723307255303,0.26206204,60771.0,60770.0,0.0289141]
[1723307255705,0.26206204,60771.0,60770.0,0.0489141]
[1723307256110,0.17978604,60771.0,60770.0,0.0289141]
[1723307256699,0.26206204,60771.0,60770.0,0.0489141]
[1723307256909,0.26206204,60771.0,60770.0,0.0289141]
[1723307256910,0.42661404,60771.0,60770.0,0.0289141]
[1723307257950,0.42661404,60771.0,60770.0,0.0149141]
[1723307257951,0.39625655,60771.0,60770.0,0.0149141]
[1723307258288,0.42649985,60771.0,60770.0,0.0149141]
[1723307258735,0.42649985,60771.0,60770.0,0.0119141]
[1723307259156,0.59105185,60771.0,60770.0,0.0119141]
[1723307259664,0.59105185,60771.0,60770.0,0.0259141]
[1723307260591,0.59105185,60771.0,60770.0,0.0149141]
[1723307260991,0.75560385,60771.0,60770.0,0.0259141]
[1723307261551,0.85424816,60771.0,60770.0,0.0259141]
[1723307261951,0.85445429,60771.0,60770.0,0.0259141]
[1723307262328,0.75580998,60771.0,60770.0,0.0259141]
[1723307262696,0.59125798,60771.0,60770.0,0.0259141]
[1723307263278,0.6652072,60771.0,60770.0,0.0259141]
[1723307264155,0.59125798,60771.0,60770.0,0.0259141]
[1723307264344,0.665259,60771.0,60770.0,0.0259141]
[1723307265578,0.63474946,60771.0,60770.0,0.0259141]
[1723307265711,0.66523219,60771.0,60770.0,0.0259141]
[1723307266117,0.66523437,60771.0,60770.0,0.0259141]
[1723307266419,0.59129346,60771.0,60770.0,0.0259141]
[1723307266869,0.66524865,60771.0,60770.0,0.0259141]
[1723307267204,0.59130774,60771.0,60770.0,0.0259141]
[1723307267622,0.64058712,60771.0,60770.0,0.0259141]
[1723307268022,0.64059815,60771.0,60770.0,0.0259141]
[1723307270356,0.59131877,60771.0,60770.0,0.0259141]
[1723307272031,0.42668248,60771.0,60770.0,0.0259141]
[1723307274745,0.42662324,60771.0,60770.0,0.0259141]
[1723307277624,0.39625655,60771.0,60770.0,0.0259141]
[1723307277829,0.42662631,60771.0,60770.0,0.0259141]
[1723307278231,0.42662623,60771.0,60770.0,0.0259141]
[1723307279347,0.59117823,60771.0,60770.0,0.0259141]
[1723307279591,0.56080855,60771.0,60770.0,0.0259141]
[1723307279827,0.59118537,60771.0,60770.0,0.0259141]
[1723307280956,0.56080855,60771.0,60770.0,0.0259141]
[1723307281164,0.59118453,60771.0,60770.0,0.0259141]
[1723307281342,0.64046648,60771.0,60770.0,0.0259141]
[1723307282235,0.68892552,60771.0,60770.0,0.0259141]
[1723307282656,0.85347752,60771.0,60770.0,0.0259141]
[1723307282857,0.68892552,60771.0,60770.0,0.0259141]
[1723307283511,0.85347752,60771.0,60770.0,0.0259141]
[1723307283649,0.68892552,60771.0,60770.0,0.0259141]
[1723307284060,0.68900841,60771.0,60770.0,0.0259141]
[1723307284256,0.85356041,60771.0,60770.0,0.0259141]
[1723307284485,0.71110004,60771.0,60770.0,0.0259141]
[1723307285162,0.78502297,60771.0,60770.0,0.0259141]
[1723307285730,0.78503212,60771.0,60770.0,0.0259141]
[1723307285905,0.94958412,60771.0,60770.0,0.0259141]
[1723307286076,0.78503212,60771.0,60770.0,0.0259141]
[1723307286486,0.94958412,60771.0,60770.0,0.0259141]
[1723307286653,0.78503212,60771.0,60770.0,0.0259141]
[1723307286853,0.94958412,60771.0,60770.0,0.0259141]
[1723307287061,0.94958412,60771.0,60770.0,0.0009141]
[1723307287474,0.94958412,60771.0,60770.0,0.0029141]
[1723307287674,0.94959627,60771.0,60770.0,0.0029141]
[1723307288056,0.87067836,60771.0,60770.0,0.0029141]
[1723307288202,0.78538515,60771.0,60770.0,0.0029141]
[1723307288553,0.63475278,60771.0,60770.0,0.0009141]
[1723307288667,0.78615127,60771.0,60770.0,0.0019141]
[1723307289184,0.87675904,60771.0,60770.0,0.0019141]
[1723307290286,0.97675904,60771.0,60770.0,0.0019141]
[1723307290867,0.97675904,60771.0,60770.0,0.0009141]
[1723307291064,0.97675904,60771.0,60770.0,0.0019141]
[1723307291265,0.97675904,60771.0,60770.0,0.0039141]
[1723307291523,0.97675904,60771.0,60770.0,0.0029141]
[1723307291710,0.97675904,60771.0,60770.0,0.0009141]
[1723307291852,0.82536055,60771.0,60770.0,0.0009141]
[1723307292051,1.7565246,60771.0,60770.0,0.0009141]
[1723307292308,1.7585246,60771.0,60770.0,0.0009141]
[1723307293285,0.9785246,60771.0,60770.0,0.0009141]
[1723307293486,0.9805246,60771.0,60770.0,0.0009141]
[1723307293890,0.9785246,60771.0,60770.0,0.0009141]
[1723307294088,0.9765246,60771.0,60770.0,0.0009141]
[1723307294289,1.10177973,60771.0,60770.0,0.0009141]
[1723307294637,0.9805246,60771.0,60770.0,0.0009141]
[1723307294822,1.10177842,60771.0,60770.0,0.0009141]
[1723307295246,1.09977842,60771.0,60770.0,0.0029141]
[1723307295821,0.99714953,60771.0,60770.0,0.0029141]
[1723307296055,0.97605447,60771.0,60770.0,0.0029141]
[1723307297424,0.97605447,60771.0,60770.0,0.0009141]
[1723307298578,0.97605447,60771.0,60770.0,0.0019141]
[1723307298871,1.66705447,60771.0,60770.0,0.0019141]
[1723307299938,1.84086939,60771.0,60770.0,0.0019141]
[1723307300073,1.99017876,60771.0,60770.0,0.0019141]
[1723307300277,1.8422516,60771.0,60770.0,0.0019141]
[1723307300497,1.69017547,60771.0,60770.0,0.0019141]
[1723307300694,1.84224616,60771.0,60770.0,0.0019141]
[1723307300917,1.84224616,60771.0,60770.0,0.0009141]
[1723307300918,2.00866422,60771.0,60770.0,0.0009141]
[1723307301153,2.00766422,60771.0,60770.0,0.0009141]
[1723307301371,2.00766422,60771.0,60770.0,0.0019141]
[1723307301576,2.00866422,60771.0,60770.0,0.0019141]
[1723307301849,2.00853813,60771.0,60770.0,0.0009141]
[1723307302055,2.00753813,60771.0,60770.0,0.0009141]
[1723307302312,2.00753813,60771.0,60770.0,0.0019141]
[1723307302505,2.17268783,60771.0,60770.0,0.0019141]
[1723307302840,2.19568783,60771.0,60770.0,0.0019141]
[1723307303278,2.19382177,60771.0,60770.0,0.0019141]
[1723307303871,2.3607618,60771.0,60770.0,0.0019141]
[1723307304094,2.47041149,60771.0,60770.0,0.0019141]
[1723307304285,2.47031406,60771.0,60770.0,0.0019141]
[1723307304616,2.36067059,60771.0,60770.0,0.0019141]
[1723307304847,2.47031188,60771.0,60770.0,0.0019141]
[1723307305157,2.36067059,60771.0,60770.0,0.0019141]
[1723307305363,2.47019508,60771.0,60770.0,0.0019141]
[1723307306025,2.36067059,60771.0,60770.0,0.0019141]
[1723307306664,2.52522259,60771.0,60770.0,0.0019141]
[1723307306818,0.246913,60750.0,60749.0,0.0009141]
[1723307307007,0.2802282,60750.0,60749.0,0.0009141]
[1723307307220,0.24958952,60750.0,60749.0,0.0009141]
[1723307307407,0.28014367,60750.0,60749.0,0.0009141]
[1723307308119,0.44475267,60750.0,60749.0,0.0009141]
[1723307308308,0.44475267,60750.0,60749.0,0.0209141]
[1723307308527,0.28014367,60750.0,60749.0,0.0209141]
[1723307308744,0.11553467,60750.0,60749.0,0.1634141]
[1723307308961,0.11553467,60750.0,60749.0,0.1774141]
[1723307309499,0.28014367,60750.0,60749.0,0.1914141]
[1723307310338,0.44475267,60750.0,60749.0,0.1914141]
[1723307311293,0.44464742,60750.0,60749.0,0.1914141]
[1723307311507,0.44464748,60750.0,60749.0,0.1914141]
[1723307311700,0.11542948,60750.0,60749.0,0.1914141]
[1723307311931,0.28003848,60750.0,60749.0,0.1914141]
[1723307314657,0.24958952,60750.0,60749.0,0.1914141]
[1723307314799,0.27991677,60750.0,60749.0,0.1914141]
[1723307315410,0.03300377,60750.0,60749.0,0.35522902]
[1723307315613,0.16033393,60761.0,60758.0,0.02]
[1723307315614,0.164579,60761.0,60758.0,0.02]
[1723307315818,0.11531481,60760.0,60759.0,0.02]
[1723307316075,0.11531481,60760.0,60750.0,0.0787]
[1723307316076,0.082292,60759.0,60758.0,0.02]
[1723307316301,0.11264069,60759.0,60758.0,0.02]
[1723307316439,0.27722469,60759.0,60758.0,0.02]
[1723307316646,0.11531951,60759.0,60758.0,0.02]
[1723307316853,0.11531951,60759.0,60758.0,0.1667]
[1723307317250,0.27990351,60759.0,60758.0,0.1667]
[1723307317508,0.27990351,60759.0,60758.0,0.1467]
[1723307317706,0.27990351,60759.0,60758.0,0.1667]
[1723307317928,0.27990351,60759.0,60758.0,0.00404366]
[1723307318333,0.27975156,60759.0,60758.0,0.00404366]
[1723307318708,0.44433556,60759.0,60758.0,0.00404366]
[1723307318912,0.44433556,60759.0,60758.0,0.002]
[1723307319073,0.44433556,60759.0,60758.0,0.022]
[1723307319530,0.44433556,60759.0,60758.0,0.02]
[1723307319754,0.27975156,60759.0,60758.0,0.1667]
[1723307319935,0.27975156,60759.0,60758.0,0.1707]
[1723307321125,0.27975156,60759.0,60758.0,0.1757]
[1723307321780,0.27967306,60759.0,60758.0,0.1757]
[1723307322157,0.24955482,60759.0,60758.0,0.1757]
[1723307322357,0.11508527,60759.0,60758.0,0.1757]
[1723307323481,0.11509888,60759.0,60758.0,0.1757]
[1723307325318,0.27968288,60759.0,60758.0,0.1757]
[1723307325519,0.27968288,60759.0,60758.0,0.009]
[1723307326035,0.27966916,60759.0,60758.0,0.009]
[1723307326471,0.27966916,60759.0,60758.0,0.029]
[1723307326876,0.27966916,60759.0,60758.0,0.009]
[1723307328311,0.11508516,60759.0,60758.0,0.029]
[1723307329133,0.08497082,60759.0,60758.0,0.029]
[1723307329339,0.11507583,60759.0,60758.0,0.029]
[1723307332130,0.11506558,60759.0,60758.0,0.029]
[1723307332706,0.11506551,60759.0,60758.0,0.029]
[1723307333180,0.08497082,60759.0,60758.0,0.029]
[1723307333377,0.11507514,60759.0,60758.0,0.029]
[1723307333629,0.27965914,60759.0,60758.0,0.009]
[1723307336365,0.27963816,60759.0,60758.0,0.009]
[1723307336813,0.27963816,60759.0,60758.0,0.0099141]
[1723307338419,0.27965376,60759.0,60758.0,0.0099141]
[1723307339351,0.27965376,60759.0,60758.0,0.0299141]
[1723307339848,0.27965806,60759.0,60758.0,0.0299141]
[1723307341081,0.27965806,60759.0,60758.0,0.0199141]
[1723307341362,0.11507406,60759.0,60758.0,0.0299141]
[1723307341573,0.11507406,60759.0,60758.0,0.1761141]
[1723307342302,0.11491194,60759.0,60758.0,0.1761141]
[1723307342759,0.08497082,60759.0,60758.0,0.1761141]
[1723307342938,0.11491194,60759.0,60758.0,0.1761141]
[1723307343834,0.08497082,60759.0,60758.0,0.1761141]
[1723307344078,0.11490844,60759.0,60758.0,0.1761141]
[1723307344627,0.03261644,60759.0,60758.0,0.1761141]
[1723307344824,0.03261644,60759.0,60758.0,0.88613869]
[1723307345037,0.03261644,60759.0,60758.0,1.05072569]
[1723307345038,0.02993762,60759.0,60758.0,1.05072569]
[1723307345297,0.04926696,60767.0,60766.0,0.1662]
[1723307345503,0.02994497,60767.0,60766.0,0.1662]
[1723307345639,0.03249924,60767.0,60766.0,0.1662]
[1723307345838,0.0324563,60767.0,60766.0,0.1662]
[1723307346038,0.00255427,60767.0,60766.0,0.1662]
[1723307346302,0.03245597,60767.0,60766.0,0.1662]
[1723307346955,0.03246038,60767.0,60766.0,0.1662]
[1723307347275,0.03446038,60767.0,60766.0,0.248482]
[1723307347675,0.03746038,60767.0,60766.0,0.248482]
[1723307348241,0.03446038,60767.0,60766.0,0.248482]
[1723307348440,0.03446038,60767.0,60766.0,0.181882]
[1723307348596,0.03446038,60767.0,60766.0,0.191882]
[1723307348796,0.03446038,60767.0,60766.0,0.19592367]
[1723307349028,0.03246038,60767.0,60766.0,0.19592367]
[1723307349422,0.03246038,60767.0,60766.0,0.20792367]
[1723307350029,0.00255427,60767.0,60766.0,0.20792367]
[1723307350233,0.03254522,60767.0,60766.0,0.20792367]
[1723307350390,0.03254522,60767.0,60766.0,0.203882]
[1723307350949,0.03254522,60767.0,60766.0,0.193882]
[1723307351247,0.03254522,60767.0,60766.0,0.203882]
[1723307351876,0.03254522,60767.0,60766.0,0.193882]
[1723307352289,0.03254522,60767.0,60766.0,0.203882]
[1723307353068,0.03256443,60767.0,60766.0,0.203882]
[1723307353970,0.03256443,60767.0,60766.0,0.368447]
[1723307354174,0.03256443,60767.0,60766.0,0.203882]
[1723307354558,0.03252273,60767.0,60766.0,0.203882]
[1723307355992,0.03249281,60767.0,60766.0,0.203882]
[1723307357755,0.03252164,60767.0,60766.0,0.203882]
[1723307358363,0.03252164,60767.0,60766.0,0.124282]
[1723307360150,0.03252164,60767.0,60766.0,0.59576192]
[1723307360530,0.000831,60770.0,60769.0,0.246835]
[1723307360662,0.000831,60770.0,60769.0,0.78708677]
[1723307360861,0.000831,60770.0,60769.0,0.95164377]
[1723307361268,0.000831,60770.0,60769.0,0.95168378]
[1723307362276,0.000831,60770.0,60769.0,0.81700692]
[1723307362886,0.000831,60770.0,60769.0,0.102278]
[1723307363321,0.000831,60770.0,60769.0,0.109278]
[1723307363322,0.00339103,60770.0,60769.0,0.109278]
[1723307363900,0.00339103,60770.0,60769.0,0.118278]
[1723307364274,0.00339103,60770.0,60769.0,0.282835]
[1723307367195,0.00339103,60770.0,60769.0,0.359535]
[1723307367409,0.000831,60770.0,60769.0,0.75180692]
[1723307367615,0.00339009,60770.0,60769.0,0.75180692]
[1723307367812,0.00339009,60770.0,60769.0,0.91636392]
[1723307368258,0.000831,60770.0,60769.0,0.91636392]
[1723307368596,0.000831,60770.0,60769.0,1.05102112]
[1723307369068,0.000831,60770.0,60769.0,0.88646412]
[1723307369870,0.000831,60770.0,60769.0,0.75180692]
[1723307373325,0.000831,60770.0,60769.0,0.88675892]
[1723307374170,0.000831,60770.0,60769.0,0.75180692]
[1723307374429,0.000831,60770.0,60769.0,0.8868877]
[1723307375493,0.000831,60770.0,60769.0,0.88688676]
[1723307376482,0.000831,60770.0,60769.0,0.75180692]
[1723307376784,0.000831,60770.0,60769.0,0.88683279]
[1723307377201,0.000831,60770.0,60769.0,0.82283856]
[1723307378556,0.000831,60770.0,60769.0,0.82688065]
[1723307379796,0.000831,60770.0,60769.0,0.82283856]
[1723307380132,0.000831,60770.0,60769.0,0.68790692]
[1723307380330,0.000831,60770.0,60769.0,0.82254598]
[1723307381160,0.000831,60770.0,60769.0,0.68790692]
[1723307381362,0.000831,60770.0,60769.0,0.82249827]
[1723307383819,0.000831,60770.0,60769.0,0.82250851]
[1723307386959,0.03078669,60770.0,60769.0,0.82250851]
[1723307387457,0.000831,60770.0,60769.0,0.82256011]
[1723307387690,0.03078668,60770.0,60769.0,0.82256011]
[1723307387927,0.000831,60770.0,60769.0,0.68790692]
[1723307388143,0.000831,60770.0,60769.0,0.68882102]
[1723307388365,0.000831,60770.0,60769.0,0.82347421]
[1723307388866,0.03075898,60770.0,60769.0,0.82347421]
[1723307390126,0.03084271,60770.0,60769.0,0.82347421]
[1723307390529,0.03084258,60770.0,60769.0,0.8232823]
[1723307391325,0.03075337,60770.0,60769.0,0.82359535]
[1723307392189,0.03075337,60770.0,60769.0,0.65903835]
[1723307392404,0.03075337,60770.0,60769.0,0.58233835]
[1723307392820,0.03318026,60770.0,60769.0,0.58230966]
[1723307394922,0.03318026,60770.0,60769.0,0.74686666]
[1723307396642,0.00324685,60770.0,60769.0,0.74686666]
[1723307396986,0.03073495,60770.0,60769.0,0.74686666]
[1723307398753,0.03073495,60770.0,60769.0,1.38193766]
[1723307398955,0.000831,60770.0,60769.0,1.85880782]
[1723307399154,0.000831,60770.0,60769.0,1.95950782]
[1723307399306,0.000831,60770.0,60769.0,2.15702482]
[1723307399506,0.000831,60770.0,60769.0,1.99246782]
[1723307399713,0.000831,60770.0,60769.0,1.94908603]
[1723307399909,0.000831,60770.0,60769.0,1.94208603]
[1723307400311,0.000831,60770.0,60769.0,1.9180471]
[1723307400665,0.000831,60770.0,60769.0,2.01436298]
[1723307400773,0.000831,60770.0,60769.0,2.17891987]
[1723307400994,0.000831,60770.0,60769.0,2.16491987]
[1723307401242,0.000831,60770.0,60769.0,2.15091987]
[1723307401413,0.000831,60770.0,60769.0,2.16491987]
[1723307401617,0.000831,60770.0,60769.0,2.07595647]
[1723307402025,0.000831,60770.0,60769.0,1.91127033]
[1723307402294,0.000831,60770.0,60769.0,1.80257033]
[1723307402477,0.000831,60770.0,60769.0,1.84831033]
[1723307402605,0.000831,60770.0,60769.0,1.67408244]
[1723307402807,0.000831,60770.0,60769.0,1.75793905]
[1723307403007,0.000831,60770.0,60769.0,1.74793905]
[1723307403341,0.000831,60770.0,60769.0,1.38949924]
[1723307403586,0.000831,60770.0,60769.0,1.46819924]
[1723307403797,0.000831,60770.0,60769.0,1.46820393]
[1723307404137,0.000831,60770.0,60769.0,1.00400974]
[1723307404535,0.000831,60770.0,60769.0,0.99000974]
[1723307404731,0.000831,60770.0,60769.0,0.97600974]
[1723307404937,0.000831,60770.0,60769.0,0.99000974]
[1723307405147,0.000831,60770.0,60769.0,1.00400974]
[1723307405791,0.000831,60770.0,60769.0,0.92530974]
[1723307406267,0.000831,60770.0,60769.0,0.92534488]
[1723307406671,0.000831,60770.0,60769.0,0.90534488]
[1723307407078,0.000831,60770.0,60769.0,0.87734488]
[1723307407436,0.000831,60770.0,60769.0,0.89134488]
[1723307407640,0.000831,60770.0,60769.0,0.90534488]
[1723307407864,0.000831,60770.0,60769.0,0.89134488]
[1723307408634,0.000831,60770.0,60769.0,0.90534488]
[1723307409252,0.000831,60770.0,60769.0,1.18174488]
[1723307409632,0.000831,60770.0,60769.0,1.24244488]
[1723307409855,0.000831,60770.0,60769.0,1.10577802]
[1723307410056,0.000831,60770.0,60769.0,1.2424365]
[1723307410182,0.000831,60770.0,60769.0,1.10577802]
[1723307410375,0.000831,60770.0,60769.0,1.24243604]
[1723307410581,0.000831,60770.0,60769.0,1.22843604]
[1723307410997,0.000831,60770.0,60769.0,1.24243604]
[1723307411432,0.000831,60770.0,60769.0,1.24243667]
[1723307413358,0.000831,60770.0,60769.0,1.18173557]
[1723307414250,0.142331,60770.0,60769.0,1.12203557]
[1723307414403,0.142331,60770.0,60769.0,0.92533557]
[1723307415907,0.142331,60770.0,60769.0,0.74077857]
[1723307416082,0.142331,60770.0,60769.0,0.76077857]
[1723307416284,0.142331,60770.0,60769.0,0.74077857]
[1723307416500,0.142331,60770.0,60769.0,0.60412102]
[1723307418480,0.142331,60770.0,60769.0,0.62412102]
[1723307419176,0.142331,60770.0,60769.0,0.4603061]
[1723307421727,0.142331,60770.0,60769.0,0.4403061]
[1723307423683,0.142331,60770.0,60769.0,0.2957491]
[1723307424299,0.142331,60770.0,60769.0,0.2757491]
[1723307424885,0.142331,60770.0,60769.0,0.4403061]
[1723307425650,0.142331,60770.0,60769.0,0.4603061]
[1723307426408,0.142331,60770.0,60769.0,0.2957491]
[1723307427835,0.142331,60770.0,60769.0,0.2757491]
[1723307428033,0.142331,60770.0,60769.0,0.2957491]
[1723307430619,0.000831,60770.0,60769.0,0.45956402]
[1723307430818,0.000831,60770.0,60769.0,1.07134575]
[1723307431164,0.000831,60770.0,60769.0,1.07134065]
[1723307431874,0.000831,60770.0,60769.0,1.07133295]
[1723307433340,0.000831,60770.0,60769.0,1.08124584]
[1723307433781,0.000831,60770.0,60769.0,1.08124484]
[1723307437380,0.000831,60770.0,60769.0,1.08124406]
[1723307437976,0.000831,60770.0,60769.0,0.94459091]
[1723307438177,0.000831,60770.0,60769.0,1.08124407]
[1723307439935,0.000831,60770.0,60769.0,1.08124389]
[1723307440266,0.000831,60770.0,60769.0,0.839474]
[1723307440758,0.000831,60770.0,60769.0,1.004031]
[1723307441510,0.000831,60770.0,60769.0,1.083731]
[1723307441924,0.000831,60770.0,60769.0,0.94707802]
[1723307442156,0.000831,60770.0,60769.0,1.08373186]
[1723307443115,0.000831,60770.0,60769.0,1.31118886]
[1723307443231,0.000831,60770.0,60769.0,1.93461018]
[1723307443430,0.000831,60770.0,60769.0,1.86079395]
[1723307443837,0.000831,60770.0,60769.0,1.95916016]
[1723307444483,0.000831,60770.0,60769.0,1.92056241]
[1723307444857,0.000831,60770.0,60769.0,1.92056178]
[1723307445224,0.0001,60789.0,60777.0,0.01]
[1723307445424,0.0001,60789.0,60786.0,0.488066]
[1723307445546,0.0001,60789.0,60786.0,1.11755676]
[1723307445742,0.0001,60789.0,60786.0,1.40152887]
[1723307445950,0.0001,60789.0,60786.0,1.57228068]
[1723307446398,0.0001,60789.0,60786.0,1.28406776]
[1723307447002,0.0001,60789.0,60786.0,1.29406776]
[1723307447319,0.0001,60789.0,60786.0,1.29806776]
[1723307447524,0.0001,60789.0,60786.0,1.31206776]
[1723307447728,0.0001,60789.0,60786.0,1.42996776]
[1723307448312,0.0001,60789.0,60786.0,1.42991818]
[1723307448671,0.0001,60789.0,60786.0,1.43396083]
[1723307448883,0.0001,60789.0,60786.0,1.43196083]
[1723307449094,0.0001,60789.0,60786.0,1.28531818]
[1723307449747,0.0001,60789.0,60786.0,1.29520683]
[1723307450686,0.0001,60789.0,60786.0,1.39890729]
[1723307451440,0.0001,60789.0,60786.0,1.26230257]
[1723307451644,0.0001,60789.0,60786.0,1.39990728]
[1723307451870,0.0001,60789.0,60786.0,1.40090728]
[1723307452070,0.0001,60789.0,60786.0,1.41090728]
[1723307452441,0.0001,60789.0,60786.0,1.37890679]
[1723307452699,0.0001,60789.0,60786.0,1.39890679]
[1723307452886,0.0001,60789.0,60786.0,1.29520679]
[1723307453041,0.0827,60788.0,60786.0,1.13860257]
[1723307453244,0.0827,60788.0,60786.0,1.12080764]
[1723307454148,0.0827,60788.0,60786.0,1.12081925]
[1723307455038,0.0001,60789.0,60786.0,1.20151925]
[1723307455241,0.0001,60789.0,60786.0,1.26611943]
[1723307456292,0.0001,60789.0,60786.0,1.20151943]
[1723307457602,0.0001,60789.0,60786.0,1.12081943]
[1723307457934,0.0001,60789.0,60786.0,1.12281943]
[1723307458843,0.0001,60789.0,60786.0,1.31033043]
[1723307458956,0.0001,60789.0,60786.0,1.28833043]
[1723307459162,0.0001,60789.0,60786.0,1.31033043]
[1723307459565,0.0001,60789.0,60786.0,1.46363043]
[1723307459776,0.0001,60789.0,60786.0,1.45563043]
[1723307459978,0.0001,60789.0,60786.0,1.51363043]
[1723307460181,0.0001,60789.0,60786.0,1.58363043]
[1723307460378,0.0001,60789.0,60786.0,1.54963043]
[1723307460587,0.0001,60789.0,60786.0,1.56963043]
[1723307461151,0.0001,60789.0,60786.0,1.58363043]
[1723307461731,0.0001,60789.0,60786.0,1.39501392]
[1723307462059,0.0001,60789.0,60786.0,1.5536223]
[1723307462618,0.0001,60789.0,60786.0,1.5636223]
[1723307463044,0.0001,60789.0,60786.0,1.5536223]
[1723307465252,0.0001,60789.0,60786.0,1.5636223]
[1723307465432,0.0661,60788.0,60786.0,1.38532261]
[1723307465745,0.0661,60788.0,60786.0,1.22081161]
[1723307468886,0.0828,60789.0,60786.0,1.22081791]
[1723307471829,0.0828,60789.0,60786.0,1.20081791]
[1723307472473,0.0828,60789.0,60786.0,1.20081911]
[1723307472898,0.0828,60789.0,60786.0,1.20081939]
[1723307473369,0.0828,60789.0,60786.0,1.22081939]
[1723307473572,0.0828,60789.0,60786.0,1.38533039]
[1723307473686,0.0001,60789.0,60786.0,1.20081939]
[1723307474565,0.0001,60789.0,60786.0,1.37441252]
[1723307474921,0.0001,60789.0,60786.0,1.53892352]
[1723307475126,0.0001,60789.0,60786.0,1.45471252]
[1723307475322,0.0001,60789.0,60786.0,1.9235924]
[1723307475533,0.0001,60789.0,60786.0,1.9465924]
[1723307476163,0.0001,60789.0,60786.0,1.94670901]
[1723307476736,0.0001,60789.0,60786.0,1.96670901]
[1723307476937,0.0001,60789.0,60786.0,1.63359801]
[1723307477143,0.0764,60788.0,60786.0,1.63359801]
[1723307477341,0.07411,60787.0,60786.0,1.63359801]
[1723307477791,0.07411,60787.0,60786.0,1.51559801]
[1723307478160,0.07411,60787.0,60786.0,1.27653197]
[1723307479212,0.07411,60787.0,60786.0,1.32483937]
[1723307479213,0.00831,60787.0,60786.0,1.32483937]
[1723307479359,0.00831,60787.0,60786.0,1.69620271]
[1723307479564,0.00831,60787.0,60786.0,1.67795037]
[1723307479759,0.00831,60787.0,60786.0,1.65659876]
[1723307479989,0.00831,60787.0,60786.0,1.82110976]
[1723307480207,0.00831,60787.0,60786.0,1.97870976]
[1723307480567,0.00831,60787.0,60786.0,1.99870976]
[1723307480813,0.00831,60787.0,60786.0,2.04771884]
[1723307481137,0.00831,60787.0,60786.0,2.21188854]
[1723307481337,0.00831,60787.0,60786.0,2.04637754]